[Event "Israel National League 2024"]
[Site "Israel"]
[Date "2024.01.19"]
[Round "3.2"]
[White "Tzidkiya, Yeshaayahu"]
[Black "Ben Ari, Yannay"]
[Result "1/2-1/2"]
[ECO "B31"]
[WhiteElo "2448"]
[BlackElo "2417"]
[Annotator "RC"]
[PlyCount "59"]
[EventDate "2024.01.07"]
[EventType "team-tourn"]
[EventCountry "ISR"]
[SourceTitle "playchess.com"]
[Source "ChessBase"]
[SourceQuality "1"]
[TimeControl "40/5400+30:1800+30"]

1. e4 {[%emt 0:00:05]} c5 {[%emt 0:00:59]} 2. Nf3 {[%emt 0:00:28]} Nc6 {[%emt 0:00:34]} 3. Bb5 {[%emt 0:01:22]} g6 {[%emt 0:00:10]} 4. O-O {[%emt 0:04:58]} Bg7 {[%emt 0:00:10]} 5. c3 {[%emt 0:00:04]} e5 {[%emt 0:00:41]} 6. d4 {[%emt 0:02:54]} cxd4 {[%emt 0:00:10]} 7. cxd4 {[%emt 0:00:02]} exd4 {[%emt 0:00:13]} 8. Bf4 {[%emt 0:00:26]} a6 {[%emt 0:00:34]} 9. Bc4 {[%emt 0:10:38]} d6 {[%emt 0:01:08]} 10. Nbd2 {[%emt 0:05:23]} Nf6 {[%emt 0:03:56]} 11. Qb3 {[%emt 0:22:50]} O-O {[%emt 0:06:05]} 12. Qa3 {[%emt 0:11:40]} Ne8 {[%emt 0:29:59]} 13. Bd5 {[%emt 0:05:41]} Ne7 {[%emt 0:20:51]} 14. Nc4 {[%emt 0:05:33]} Nc7 {[%emt 0:05:05]} 15. Bg5 {[%emt 0:10:34]} h6 {[%emt 0:01:49]} 16. Bxe7 {[%emt 0:01:51]} Qxe7 {[%emt 0:00:03]} 17. Nb6 {[%emt 0:02:05]} Rb8 {[%emt 0:00:21]} 18. Rfe1 {[%emt 0:12:08]} Bg4 {[%emt 0:14:18]} 19. Nd2 {[%emt 0:00:08]} d3 {[%emt 0:07:22]} 20. Bc4 {[%emt 0:01:08]} Bd4 {[%emt 0:01:34]} 21. e5 {[%emt 0:00:28]} Bxb6 {[%emt 0:00:55]} 22. exd6 {[%emt 0:00:20]} Qh4 {[%emt 0:00:01]} 23. dxc7 {[%emt 0:00:38]} Bxf2+ {[%emt 0:02:10]} 24. Kh1 {[%emt 0:00:07]} Bxe1 {[%emt 0:02:44]} 25. cxb8=Q {[%emt 0:00:31]} Rxb8 {[%emt 0:00:02]} 26. Qd6 {[%emt 0:00:40]} Rd8 {[%emt 0:00:54]} 27. Qxg6+ {[%emt 0:00:34]} Kh8 {[%emt 0:00:10]} 28. Qxf7 {[%emt 0:00:17]} Bxd2 {[%emt 0:00:20]} 29. Bxd3 {[%emt 0:00:32]} Rxd3 {[%emt 0:01:06]} 30. Qf8+ {[%emt 0:00:02]} 1/2-1/2

[Event "Israel National League 2024"]
[Site "Israel"]
[Date "2024.01.19"]
[Round "3.3"]
[White "Iliaguev, Nisim"]
[Black "Aizenberg, Benny"]
[Result "0-1"]
[ECO "D05"]
[WhiteElo "2399"]
[BlackElo "2396"]
[Annotator "RC"]
[PlyCount "60"]
[EventDate "2024.01.07"]
[EventType "team-tourn"]
[EventCountry "ISR"]
[SourceTitle "playchess.com"]
[Source "ChessBase"]
[SourceQuality "1"]
[TimeControl "40/5400+30:1800+30"]

1. Nf3 {[%emt 0:14:50]} Nf6 {[%emt 0:00:07]} 2. b3 {[%emt 0:00:21]} d5 {[%emt 0:01:27]} 3. Bb2 {[%emt 0:00:52]} e6 {[%emt 0:00:08]} 4. e3 {[%emt 0:01:03]} c5 {[%emt 0:02:24]} 5. d4 {[%emt 0:12:57]} Nc6 {[%emt 0:04:42]} 6. Nbd2 {[%emt 0:03:06]} cxd4 {[%emt 0:05:00]} 7. Nxd4 {[%emt 0:05:15]} Bd6 {[%emt 0:03:50]} 8. Bd3 {[%emt 0:10:09]} O-O {[%emt 0:01:17]} 9. O-O {[%emt 0:04:53]} e5 {[%emt 0:09:32]} 10. Nxc6 {[%emt 0:01:19]} bxc6 {[%emt 0:00:05]} 11. e4 {[%emt 0:00:13]} a5 {[%emt 0:05:19]} 12. a4 {[%emt 0:04:06]} Bg4 {[%emt 0:04:32]} 13. f3 {[%emt 0:04:30]} Bh5 {[%emt 0:01:39]} 14. Qe2 {[%emt 0:03:40]} Nd7 {[%emt 0:04:29]} 15. Rad1 {[%emt 0:05:14]} Re8 {[%emt 0:03:41]} 16. Kh1 {[%emt 0:07:18]} Nc5 {[%emt 0:05:03]} 17. Qe3 {[%emt 0:06:04]} Rb8 {[%emt 0:04:12]} 18. exd5 {[%emt 0:06:37]} cxd5 {[%emt 0:01:33]} 19. Bb5 {[%emt 0:00:12]} Re6 {[%emt 0:05:16]} 20. Ba3 {[%emt 0:04:56]} d4 {[%emt 0:01:53]} 21. Qf2 {[%emt 0:01:24]} e4 {[%emt 0:15:07]} 22. Nc4 {[%emt 0:01:01]} e3 {[%emt 0:02:23]} 23. Qe2 {[%emt 0:00:37]} Bxh2 {[%emt 0:01:46]} 24. Kxh2 {[%emt 0:00:58]} Ne4 {[%emt 0:00:05]} 25. Nxe3 {[%emt 0:00:54]} Qh4+ {[%emt 0:05:26]} 26. Kg1 {[%emt 0:00:00]} Ng3 {[%emt 0:00:07]} 27. Qc4 {[%emt 0:00:46]} Qh1+ {[%emt 0:02:22]} 28. Kf2 {[%emt 0:00:04]} Nxf1 {[%emt 0:00:22]} 29. Qxd4 {[%emt 0:01:05]} Rxe3 {[%emt 0:01:53]} 30. Qxe3 {[%emt 0:00:34]} Qxg2+ {[%emt 0:00:10]} 0-1

[Event "Israel National League 2024"]
[Site "Israel"]
[Date "2024.01.19"]
[Round "3.4"]
[White "Baron, Tal"]
[Black "Karp, Ilya"]
[Result "1-0"]
[ECO "B72"]
[WhiteElo "2490"]
[BlackElo "2382"]
[Annotator "TA"]
[PlyCount "87"]
[EventDate "2024.01.07"]
[EventType "team-tourn"]
[EventCountry "ISR"]
[SourceTitle "playchess.com"]
[Source "ChessBase"]
[SourceQuality "1"]
[TimeControl "40/5400+30:1800+30"]

{[%evp 14,87,6,6,14,17,4,8,8,3,10,3,8,6,4,6,10,10,4,0,27,16,26,7,9,9,47,-26,20,24,39,41,28,34,47,34,61,78,88,83,89,91,88,86,193,166,184,178,156,65,59,67,115,73,127,117,145,135,197,218,296,287,350,327,642,581,2319,2114,29976,29976,29975,29974,29980,29981,29987,29988]} 1. e4 {[%emt 0:01:26]} c5 {[%emt 0:01:12]} 2. Nf3 {[%emt 0:00:02]} d6 {[%emt 0:00:07]} 3. d4 {[%emt 0:00:04]} cxd4 {[%emt 0:00:05]} 4. Nxd4 {[%emt 0:00:05]} Nf6 {[%emt 0:00:03]} 5. Nc3 {[%emt 0:00:10]} g6 {[%emt 0:00:08]} 6. Be3 {[%emt 0:00:14]} Bg7 {[%emt 0:00:09]} 7. h3 {[%emt 0:07:39]} O-O {[%emt 0:02:16]} 8. Qd2 $1 {[%emt 0:01:04][%mdl 4] is currently scoring better than 8.Bc4.} d5 {[%emt 0:00:04] B72: Sicilian Dragon: 6 Be3, lines with h3+Bc4 and sidelines.} 9. exd5 {[%emt 0:01:04]} Nxd5 {[%emt 0:00:05]} 10. O-O-O {[%emt 0:00:41]} Nxe3 {[%emt 0:02:49] The position is equal.} 11. Qxe3 {[%emt 0:00:03][%cal Od4f5]} Qa5 {[%emt 0:01:21] [#] Inhibits Nf5.} 12. Nb3 $146 {[%emt 0:03:57]} ({Predecessor:} 12. Qxe7 Nc6 13. Nb3 Nxe7 14. Nxa5 Be6 15. Ne4 b6 16. Nb3 Bd5 17. Nc3 Bc6 18. Rg1 {½-½ Permykov,A (2236)-Eldridge,M (2189) FICGS rapid M 000080 email 2015 (1)}) 12... Qe5 {[%emt 0:02:24]} 13. Qxe5 {[%emt 0:00:14]} Bxe5 {[%emt 0:00:06]} 14. Nd5 {[%emt 0:00:33]} e6 {[%emt 0:12:53]} 15. Ne7+ {[%emt 0:00:39] Excellent horsemanship.} Kg7 {[%emt 0:00:13] Black is weak on the light squares} 16. g3 {[%emt 0:02:03]} a5 {[%emt 0:28:22]} 17. Nxc8 {[%emt 0:12:08]} Rxc8 {[%emt 0:00:23]} 18. Nd2 {[%emt 0:00:12]} Nc6 {[%emt 0:05:09]} 19. Nc4 {[%emt 0:02:46] Strongly threatening Nb6.} Bd4 {[%emt 0:09:47] Repels Nb6} 20. Rd2 {[%emt 0:00:47]} (20. Bg2 $1 $14 Rd8 21. Rd2) 20... Rc7 {[%emt 0:12:59]} (20... b5 $142 21. Na3 b4) 21. Bg2 $11 {[%emt 0:02:11] Bxc6 is the strong threat.} Bc5 {[%emt 0:00:22]} 22. Rhd1 {[%emt 0:00:49][%cal Bh1d1,Bd1d7,Bd7b7][%mdl 32]} a4 {[%emt 0:14:41]} 23. Rd7 {[%emt 0:11:48]} Rxd7 {[%emt 0:04:34]} 24. Rxd7 {[%emt 0:00:01]} Bxf2 {[%emt 0:00:35]} 25. Rxb7 {[%emt 0:00:11]} Rc8 {[%emt 0:00:43] [#]} 26. Bxc6 $1 {[%emt 0:02:07]} Rxc6 $16 {[%emt 0:00:02][%mdl 4096] Endgame KRB-KRN} 27. Ne5 {[%emt 0:00:04][%csl LRc6,LRf7]} Be3+ {[%emt 0:00:29]} 28. Kd1 {[%emt 0:00:01] White is more active.} Rd6+ {[%emt 0:00:22]} (28... Rc5 $16 {was necessary.} 29. Nxf7 (29. Rxf7+ $2 Kg8 $19) 29... Kf6) 29. Ke2 $18 {[%emt 0:00:14]} Bc1 {[%emt 0:00:22]} 30. Rxf7+ {[%emt 0:00:54]} (30. Nxf7 Rd2+ 31. Kf3 Rxc2 $11) 30... Kg8 {[%emt 0:00:04] [#] Hoping for ...Rd2+.} 31. Rc7 {[%emt 0:00:52]} (31. Rd7 $1 $16 {[%cal Rd7d6]} Rxd7 32. Nxd7) 31... Rd2+ $14 {[%emt 0:00:37]} 32. Ke1 {[%emt 0:00:19]} Rh2 {[%emt 0:01:30]} (32... Rg2 $14 {feels stronger.}) 33. b3 {[%emt 0:09:17][%cal Bb2b3,Bb3b4,Bb4b5,Bb5b6,Bb6b7][%mdl 32]} Rxh3 {[%emt 0:00:36]} ({Better is} 33... Ba3) 34. Kf2 $16 {[%emt 0:00:04]} Rh5 {[%emt 0:00:58]} 35. Nd3 {[%emt 0:00:45]} Rf5+ {[%emt 0:00:25]} (35... Bh6 $16 36. b4 (36. bxa4 Bf8 $16) 36... Bf8) 36. Ke2 $18 {[%emt 0:00:57]} Bg5 {[%emt 0:00:40]} 37. b4 {[%emt 0:00:37]} ({Weaker is} 37. bxa4 Rf8 $16) 37... h5 {[%emt 0:00:31]} 38. c4 {[%emt 0:00:22][%cal Bc2c4,Bc4c5][%mdl 32] Threatens to win with b5.} Bf6 $2 {[%emt 0:00:18]} (38... Rf7) 39. b5 {[%emt 0:00:36]} Bd4 {[%emt 0:00:36] Inhibits b6.} 40. c5 {[%emt 0:00:38] aiming for b6.} e5 {[%emt 0:00:58]} 41. b6 {[%emt 0:32:55] White mates.} e4 {[%emt 0:03:54]} 42. b7 {[%emt 0:00:00]} Rf8 {[%emt 0:00:18]} 43. Nf4 {[%emt 0:00:00]} Be5 {[%emt 0:00:33]} 44. Rc8 {[%emt 0:00:00] Weighted Error Value: White=0.09 (flawless) /Black=0.48} 1-0

[Event "Israel National League 2024"]
[Site "Israel"]
[Date "2024.01.19"]
[Round "3.5"]
[White "Mordechai, Hanan"]
[Black "Flom, Gabriel"]
[Result "0-1"]
[ECO "B43"]
[WhiteElo "2347"]
[BlackElo "2421"]
[Annotator "RC"]
[PlyCount "64"]
[EventDate "2024.01.07"]
[EventType "team-tourn"]
[EventCountry "ISR"]
[SourceTitle "playchess.com"]
[Source "ChessBase"]
[SourceQuality "1"]
[TimeControl "40/5400+30:1800+30"]

1. e4 {[%emt 0:01:04]} c5 {[%emt 0:00:39]} 2. Nf3 {[%emt 0:00:06]} e6 {[%emt 0:00:31]} 3. d4 {[%emt 0:00:09]} cxd4 {[%emt 0:00:54]} 4. Nxd4 {[%emt 0:00:07]} a6 {[%emt 0:00:03]} 5. Nc3 {[%emt 0:00:10]} Qc7 {[%emt 0:00:53]} 6. f4 {[%emt 0:00:21]} b5 {[%emt 0:01:57]} 7. Bd3 {[%emt 0:01:10]} Bb7 {[%emt 0:05:59]} 8. Qe2 {[%emt 0:07:29]} Nf6 {[%emt 0:02:52]} 9. a3 {[%emt 0:15:33]} Nc6 {[%emt 0:04:21]} 10. Nb3 {[%emt 0:16:00]} d6 {[%emt 0:14:37]} 11. Bd2 {[%emt 0:03:35]} Be7 {[%emt 0:00:38]} 12. O-O {[%emt 0:03:58]} O-O {[%emt 0:01:28]} 13. Rae1 {[%emt 0:05:29]} Nd7 {[%emt 0:04:25]} 14. Rf3 {[%emt 0:06:32]} Nc5 {[%emt 0:01:23]} 15. Rh3 {[%emt 0:01:44]} g6 {[%emt 0:00:43]} 16. Nxc5 {[%emt 0:04:08]} dxc5 {[%emt 0:03:03]} 17. e5 {[%emt 0:00:47]} c4 {[%emt 0:07:58]} 18. Be4 {[%emt 0:00:23]} Nd4 {[%emt 0:00:15]} 19. Qf2 {[%emt 0:01:25]} Nf5 {[%emt 0:00:46]} 20. Qf3 {[%emt 0:03:13]} Rad8 {[%emt 0:02:34]} 21. Bc1 {[%emt 0:07:48]} Bxe4 {[%emt 0:02:52]} 22. Nxe4 {[%emt 0:00:18]} h5 {[%emt 0:01:26]} 23. Bd2 {[%emt 0:02:42]} a5 {[%emt 0:01:39]} 24. Be3 {[%emt 0:02:13]} Kg7 {[%emt 0:06:28]} 25. Ng3 {[%emt 0:02:47]} c3 {[%emt 0:17:16]} 26. b3 {[%emt 0:05:23]} Rd2 {[%emt 0:05:59]} 27. Nxh5+ {[%emt 0:07:25]} gxh5 {[%emt 0:00:08]} 28. Qxh5 {[%emt 0:00:01]} Rg8 {[%emt 0:00:43]} 29. Bxd2 {[%emt 0:00:01]} cxd2 {[%emt 0:00:09]} 30. Rd1 {[%emt 0:00:13]} Qxc2 {[%emt 0:01:00]} 31. Qe2 {[%emt 0:00:32]} Bc5+ {[%emt 0:05:22]} 32. Kh1 {[%emt 0:00:07]} Ne3 {[%emt 0:01:52]} 0-1

[Event "Israel National League 2024"]
[Site "Israel"]
[Date "2024.01.19"]
[Round "3.6"]
[White "Solomon, Asif"]
[Black "Uritsky, Yonathan"]
[Result "1/2-1/2"]
[ECO "E11"]
[WhiteElo "2242"]
[BlackElo "2097"]
[Annotator "RC"]
[PlyCount "83"]
[EventDate "2024.01.07"]
[EventType "team-tourn"]
[EventCountry "ISR"]
[SourceTitle "playchess.com"]
[Source "ChessBase"]
[SourceQuality "1"]
[TimeControl "40/5400+30:1800+30"]

1. d4 {[%emt 0:00:04]} Nf6 {[%emt 0:00:35]} 2. c4 {[%emt 0:01:18]} e6 {[%emt 0:00:14]} 3. Nf3 {[%emt 0:01:44]} Bb4+ {[%emt 0:00:23]} 4. Bd2 {[%emt 0:00:06]} a5 {[%emt 0:00:17]} 5. e3 {[%emt 0:01:15]} O-O {[%emt 0:01:15]} 6. Bd3 {[%emt 0:00:05]} b6 {[%emt 0:02:45]} 7. O-O {[%emt 0:03:10]} Bb7 {[%emt 0:00:39]} 8. Nc3 {[%emt 0:05:00]} d5 {[%emt 0:05:28]} 9. cxd5 {[%emt 0:02:40]} exd5 {[%emt 0:00:29]} 10. Ne5 {[%emt 0:03:28]} Nbd7 {[%emt 0:01:22]} 11. f4 {[%emt 0:04:32]} Bxc3 {[%emt 0:03:29]} 12. bxc3 {[%emt 0:09:13]} Ne4 {[%emt 0:02:23]} 13. Rf3 {[%emt 0:10:46]} f6 {[%emt 0:04:41]} 14. Bxe4 {[%emt 0:08:55]} fxe5 {[%emt 0:00:02]} 15. Bc2 {[%emt 0:01:03]} exf4 {[%emt 0:01:26]} 16. exf4 {[%emt 0:03:58]} Nf6 {[%emt 0:00:59]} 17. f5 {[%emt 0:20:19]} Qd7 {[%emt 0:02:37]} 18. Bf4 {[%emt 0:03:57]} Ne4 {[%emt 0:03:44]} 19. g4 {[%emt 0:01:14]} Rae8 {[%emt 0:03:49]} 20. Be5 {[%emt 0:01:06]} g6 {[%emt 0:01:57]} 21. fxg6 {[%emt 0:07:49]} hxg6 {[%emt 0:01:29]} 22. Bxe4 {[%emt 0:01:59]} Qxg4+ {[%emt 0:02:41]} 23. Rg3 {[%emt 0:00:16]} Qxe4 {[%emt 0:00:02]} 24. Qh5 {[%emt 0:01:00]} Qe3+ {[%emt 0:01:59]} 25. Rxe3 {[%emt 0:02:18]} gxh5 {[%emt 0:00:01]} 26. Rg3+ {[%emt 0:01:29]} Kf7 {[%emt 0:00:01]} 27. Rf1+ {[%emt 0:01:40]} Ke7 {[%emt 0:00:37]} 28. Rg7+ {[%emt 0:00:06]} Ke6 {[%emt 0:00:52]} 29. Rg6+ {[%emt 0:00:04]} Kd7 {[%emt 0:00:18]} 30. Rg7+ {[%emt 0:00:06]} Ke6 {[%emt 0:00:09]} 31. Bxc7 {[%emt 0:03:00]} Rxf1+ {[%emt 0:00:02]} 32. Kxf1 {[%emt 0:00:04]} Rf8+ {[%emt 0:00:26]} 33. Ke2 {[%emt 0:00:47]} Rf7 {[%emt 0:00:01]} 34. Rxf7 {[%emt 0:01:12]} Kxf7 {[%emt 0:00:03]} 35. Bxb6 {[%emt 0:00:06]} a4 {[%emt 0:00:33]} 36. Kf3 {[%emt 0:00:28]} Ba6 {[%emt 0:00:23]} 37. Kf4 {[%emt 0:00:44]} Ke6 {[%emt 0:00:11]} 38. Kg5 {[%emt 0:00:20]} Be2 {[%emt 0:00:10]} 39. Bc5 {[%emt 0:00:27]} Kd7 {[%emt 0:00:27]} 40. Kf6 {[%emt 0:00:13]} Kc6 {[%emt 0:00:19]} 41. Kf5 {[%emt 0:30:27]} Kb5 {[%emt 0:30:34]} 42. a3 {[%emt 0:00:24]} 1/2-1/2

[Event "Israel National League 2024"]
[Site "Israel"]
[Date "2024.01.19"]
[Round "3.7"]
[White "Nabaty, Tamir"]
[Black "Eljanov, Pavel"]
[Result "1/2-1/2"]
[ECO "C47"]
[WhiteElo "2646"]
[BlackElo "2704"]
[Annotator "TA"]
[PlyCount "124"]
[EventDate "2024.01.07"]
[EventType "team-tourn"]
[EventCountry "ISR"]
[SourceTitle "playchess.com"]
[Source "ChessBase"]
[SourceQuality "1"]
[TimeControl "40/5400+30:1800+30"]

{[%evp 17,124,2,5,2,0,0,0,1,16,6,2,9,51,8,16,0,14,3,10,14,3,13,34,30,23,0,0,6,21,12,15,4,18,10,11,0,0,0,0,0,0,0,0,0,19,6,13,13,39,33,40,28,22,20,28,15,17,0,35,20,104,0,0,0,0,0,0,0,0,0,0,-5,-7,-9,-20,-20,0,0,0,0,0,0,0,0,0,0,0,0,0,0,0,0,0,0,0,0,0,0,0,0,0,0,0,0,0,0,0,0,0]} 1. e4 {[%emt 0:00:04]} e5 {[%emt 0:00:33]} 2. Nf3 {[%emt 0:00:14]} Nc6 {[%emt 0:00:04]} 3. Nc3 {[%emt 0:00:10]} Nf6 {[%emt 0:00:10]} 4. d4 {[%emt 0:00:05]} exd4 {[%emt 0:00:06]} 5. Nxd4 {[%emt 0:00:05]} Bb4 {[%emt 0:00:11]} 6. Nxc6 {[%emt 0:00:07]} bxc6 {[%emt 0:00:04]} 7. Bd3 {[%emt 0:00:09]} d5 {[%emt 0:02:01]} 8. exd5 {[%emt 0:00:08]} O-O {[%emt 0:00:35]} 9. O-O {[%emt 0:00:07]} cxd5 {[%emt 0:00:04]} 10. h3 $1 {[%emt 0:00:25][%mdl 4] Prevents Bg4. now scores much better than the old 10.Bg5. C47: Scotch Four Knights and Four Knights with 4 g3.} c6 {[%emt 0:01:09]} 11. Re1 {[%emt 0:00:11]} Bd6 {[%emt 0:08:39]} 12. Qf3 {[%emt 0:02:32]} Bd7 {[%emt 0:09:40] [#]} 13. Be3 $146 {[%emt 0:03:21]} ({Predecessor:} 13. Bg5 h6 14. Bf4 Bxf4 15. Qxf4 Qb8 16. Qe3 Re8 17. Qc5 a5 18. a3 Qa7 19. Na4 {1-0 Rublevsky,S (2637)-Lysyj,I (2603) RUS-chT Rapid 2021 (3.2)}) 13... h6 {[%emt 0:07:48]} 14. Rad1 {[%emt 0:12:44]} Rb8 {[%emt 0:10:10]} 15. Na4 {[%emt 0:14:21]} Qa5 {[%emt 0:07:30]} 16. b3 {[%emt 0:00:31][%cal Oe3h6]} Rfe8 {[%emt 0:00:04]} 17. Bd2 {[%emt 0:13:44] Against c5} Rxe1+ {[%emt 0:01:27]} 18. Bxe1 {[%emt 0:00:02]} Qc7 {[%emt 0:03:52]} 19. Bc3 {[%emt 0:08:51]} Be5 {[%emt 0:05:09]} 20. Bxe5 {[%emt 0:01:37]} Qxe5 {[%emt 0:00:05]} 21. Qe2 {[%emt 0:00:17]} Qxe2 {[%emt 0:08:37]} 22. Bxe2 {[%emt 0:00:06]} Re8 {[%emt 0:00:07]} 23. Kf1 {[%emt 0:08:20]} Kf8 {[%emt 0:01:03]} 24. c4 {[%emt 0:01:44]} Bf5 {[%emt 0:17:06]} 25. cxd5 {[%emt 0:04:19]} Nxd5 {[%emt 0:00:34]} 26. Bf3 {[%emt 0:04:43]} Nb4 {[%emt 0:03:05]} 27. g4 {[%emt 0:03:21]} Bd3+ {[%emt 0:04:30]} 28. Kg2 {[%emt 0:01:04]} Be2 {[%emt 0:00:05]} 29. Rd2 {[%emt 0:00:50]} Bxf3+ {[%emt 0:00:07]} 30. Kxf3 $11 {[%emt 0:00:04][%mdl 4096] Endgame KRN-KRN} Re5 {[%emt 0:01:08]} 31. Nc3 {[%emt 0:04:28]} (31. a3 $5 {[%cal Ra3b4]} Rd5 32. Rxd5 Nxd5 33. Ke4 $11) 31... Ra5 {[%emt 0:03:38]} 32. Ke4 {[%emt 0:01:36]} g5 {[%emt 0:01:23]} 33. a4 {[%emt 0:04:02]} Na6 $1 {[%emt 0:01:40]} 34. Kd4 {[%emt 0:03:49]} (34. Rd6 $5 {[%cal Re4d4]}) 34... f5 $1 {[%emt 0:00:26]} 35. Re2 {[%emt 0:04:17]} Kf7 {[%emt 0:00:32]} 36. Kc4 {[%emt 0:04:12] aiming for b4.} Rc5+ {[%emt 0:00:23]} 37. Kd4 {[%emt 0:00:01][%cal Ob3b4] And now b4! would win.} Ra5 $1 {[%emt 0:00:11]} 38. Re1 {[%emt 0:01:48]} Kf6 {[%emt 0:03:09]} (38... Nc7 $1 $11) 39. Re3 {[%emt 0:00:55] White is more active.} ({White should play} 39. Re8 $16) 39... Nc7 {[%emt 0:02:01] The position is equal.} 40. b4 {[%emt 0:00:33]} c5+ $1 {[%emt 0:00:41]} 41. bxc5 {[%emt 0:04:01]} Ne6+ {[%emt 0:05:31]} 42. Kd5 {[%emt 0:15:18]} Nxc5 {[%emt 0:00:18]} (42... Rxc5+ $2 43. Kd6 Kg7 44. Kxe6 $18 (44. Rxe6 Rxc3 45. gxf5 h5 $14)) 43. Kc4 {[%emt 0:04:00]} Ne6 {[%emt 0:10:59]} 44. Nd5+ {[%emt 0:06:35][%mdl 64] [#] Deflection} Kf7 {[%emt 0:00:09] ...Rc5+ is the strong threat.} 45. Nc3 {[%emt 0:01:39]} Rc5+ {[%emt 0:01:42]} 46. Kb3 {[%emt 0:00:01]} Kf6 {[%emt 0:06:32]} 47. Rd3 {[%emt 0:00:23]} a5 {[%emt 0:00:48]} 48. Rd5 {[%emt 0:00:43]} Rxd5 {[%emt 0:02:24][%mdl 64] [#] Remove Defender} 49. Nxd5+ {[%emt 0:00:02] KN-KN} Ke5 {[%emt 0:00:05]} 50. Kc4 $1 {[%emt 0:00:26]} Nf4 {[%emt 0:03:37]} 51. Nxf4 Kxf4 {[%emt 0:00:01]} 52. gxf5 {[%emt 0:02:51]} Kxf5 {[%emt 0:00:05] K3P-K3P} 53. Kb5 {[%emt 0:00:23]} g4 {[%emt 0:00:20]} 54. hxg4+ {[%emt 0:00:18]} (54. Kxa5 {gets mated.} gxh3 55. Kb5 h2 56. Kc6 h1=Q+ 57. Kc5 h5 58. f3 h4 59. a5 Qxf3 60. Kd4 h3 61. a6 h2 62. a7 h1=Q 63. a8=B Qxa8 64. Kc4 Qa4+ 65. Kd3 Qf3+ 66. Kd2 Qad1#) 54... Kxg4 {[%emt 0:00:04]} 55. Kxa5 {[%emt 0:00:06] KPP-KP} h5 $1 {[%emt 0:00:05]} 56. Kb6 {[%emt 0:00:24] Intending a5 and mate.} h4 {[%emt 0:00:05]} 57. a5 {[%emt 0:00:02]} h3 {[%emt 0:00:04] ( -> ...h2)} 58. a6 {[%emt 0:00:10] White threatens a7 and mate.} h2 {[%emt 0:00:05]} 59. f3+ $1 {[%emt 0:00:02]} Kg3 {[%emt 0:00:06]} (59... Kh5 $5 60. a7 $8 h1=Q $11) 60. a7 {[%emt 0:00:05]} h1=Q {[%emt 0:00:06]} 61. a8=Q {[%emt 0:00:04]} Qxf3 {[%emt 0:00:09]} 62. Qxf3+ {[%emt 0:00:03]} Kxf3 {[%emt 0:08:28] Weighted Error Value: White=0.06 (flawless) /Black=0.07 (flawless)} 1/2-1/2